bitfinex/quotes_SOLUSD_20241125
["timestamp","ask_amount","ask_price","bid_price","bid_amount"]
[1732546887829,136.977432,241.26,241.0,25.0]
[1732546888121,136.97765048,241.25,241.0,50.63599358]
[1732546888330,136.97744241,241.24,241.0,25.0]
[1732546888627,4.1447,241.27,241.0,25.0]
[1732546888628,136.97764225,241.23,241.0,25.0]
[1732546888849,14.5065,241.27,241.04,10.0]
[1732546888850,136.2,241.24,241.04,10.0]
[1732546889002,140.3442,241.31,241.04,25.63599358]
[1732546889200,136.97742299,241.3,241.02,25.63599358]
[1732546889396,136.97742299,241.3,241.0,25.0]
[1732546889397,4.1445,241.28,241.0,25.0]
[1732546889619,136.97754059,241.27,241.02,4.149]
[1732546889825,136.2,241.26,241.0,25.0]
[1732546890024,136.97769233,241.25,241.0,25.0]
[1732546890226,136.2,241.25,241.0,25.0]
[1732546890433,0.77767539,241.24,241.0,25.0]
[1732546891033,136.2,241.23,241.01,25.63599358]
[1732546891214,0.77747811,241.22,241.03,25.63599358]
[1732546891407,180.6057,241.21,241.0,25.0]
[1732546891614,151.48857235,241.2,241.0,23.0]
[1732546891832,136.2,241.19,241.0,23.0]
[1732546892015,0.7777792,241.18,241.0,23.0]
[1732546892332,136.2,241.17,241.0,23.0]
[1732546892638,0.77768192,241.16,241.0,23.0]
[1732546892932,136.2,241.19,241.04,20.0]
[1732546893132,0.77756933,241.18,241.03,20.0]
[1732546893349,136.2,241.17,241.0,23.0]
[1732546893513,141.12465012,241.16,241.0,23.0]
[1732546893711,10.0,241.15,241.0,23.0]
[1732546893910,20.0,241.11,241.0,23.0]
[1732546894132,136.97807775,241.1,241.0,23.0]
[1732546894436,136.2,240.99,240.67,9.71188705]
[1732546894641,20.0,240.95,240.72,0.08737596]
[1732546894845,20.0,240.91,240.67,9.71188705]
[1732546895015,136.9786807,240.9,240.68,0.09277253]
[1732546895245,20.0,240.87,240.68,0.09277253]
[1732546895419,38.308684,240.85,240.54,25.63599358]
[1732546895624,23.776884,240.83,240.55,25.63599358]
[1732546895933,23.776884,240.81,240.49,25.63599358]
[1732546896237,136.97928333,240.8,240.45,25.63599358]
[1732546896536,10.0,240.84,240.38,25.63599358]
[1732546896537,10.0,240.67,240.38,25.63599358]
[1732546896710,10.0,240.63,240.31,20.24076487]
[1732546897028,23.776884,240.61,240.32,25.63599358]
[1732546897245,136.97987789,240.6,240.36,25.63599358]
[1732546897413,4.1571,240.55,240.36,25.63599358]
[1732546897616,136.2,240.58,240.4,25.63599358]
[1732546897816,136.2,240.57,240.32,7.38690392]
[1732546898011,136.2,240.65,240.4,25.63599358]
[1732546898231,140.85886496,240.64,240.32,7.38680392]
[1732546898430,140.85886496,240.64,240.32,3.22590392]
[1732546898431,23.776884,240.57,240.32,3.22590392]
[1732546898635,17.39934658,240.53,240.32,3.22590392]
[1732546898937,136.70336496,240.52,240.34,25.63599358]
[1732546899132,136.70336496,240.51,240.32,3.22590392]
[1732546899341,0.50336496,240.5,240.33,25.63599358]
[1732546899633,45.17,240.48,240.32,3.22590392]
[1732546899812,0.50336496,240.47,240.32,3.22590392]
[1732546900018,136.2,240.46,240.32,3.22590392]
[1732546900221,136.70336496,240.45,240.29,3.22590392]
[1732546900432,136.2,240.45,240.29,3.22590392]
[1732546900629,0.50336496,240.44,240.29,3.22590392]
[1732546901030,136.2,240.51,240.39,25.63599358]
[1732546901235,136.70336496,240.5,240.22,10.0]
[1732546901540,136.2,240.49,240.36,25.63599358]
[1732546901708,136.70336496,240.48,240.34,25.63599358]
[1732546901911,178.2963,240.47,240.17,4.1637]
[1732546902138,136.70336496,240.46,240.23,25.63599358]
[1732546902336,42.0963,240.47,240.17,4.1637]
[1732546902337,136.2,240.45,240.17,4.1637]
[1732546902546,33.776884,240.43,240.14,0.1]
[1732546902836,20.0,240.4,240.18,25.63599358]
[1732546903041,42.0963,240.47,240.14,0.1]
[1732546903042,136.70336496,240.39,240.23,25.63599358]
[1732546903213,136.2,240.38,240.2,25.63599358]
[1732546903417,0.50336496,240.37,240.2,25.63599358]
[1732546903720,20.0,240.33,240.14,0.1]
[1732546903934,150.7614,240.36,240.14,25.73599358]
[1732546903935,136.70336496,240.32,240.14,25.73599358]
[1732546904121,136.2,240.31,240.14,0.1]
[1732546904317,0.50336496,240.3,240.14,0.1]
[1732546904637,0.50336496,240.3,240.17,25.63599358]
[1732546904944,136.2,240.29,240.14,0.1]
[1732546905232,10.0,240.35,240.14,0.1]
[1732546905233,136.70336496,240.28,240.14,0.1]
[1732546905412,136.2,240.34,240.19,25.63599358]
[1732546905613,4.66426496,240.33,240.21,25.63599358]
[1732546905923,136.2,240.32,240.21,25.63599358]
[1732546906117,0.50336496,240.31,240.23,25.63599358]
[1732546906322,0.50336496,240.35,240.27,25.63599358]
[1732546906642,0.50336496,240.35,240.23,25.63599358]
[1732546906844,14.5577,240.42,240.18,25.63599358]
[1732546906845,0.50336496,240.41,240.18,25.63599358]
[1732546907011,136.2,240.4,240.21,23.776884]
[1732546907211,14.5577,240.42,240.22,25.63599358]
[1732546907212,136.70336496,240.39,240.22,25.63599358]
[1732546907416,136.2,240.39,240.22,25.63599358]
[1732546907642,140.86336496,240.38,240.25,23.776884]
[1732546907845,4.1588,240.45,240.26,25.63599358]
[1732546908140,136.70336496,240.44,240.3,25.63599358]
[1732546908347,20.7898,240.51,240.27,23.776884]
[1732546908348,4.1567,240.57,240.38,23.776884]
[1732546908518,136.70336496,240.56,240.38,23.776884]
[1732546908720,136.2,240.55,240.38,23.776884]
[1732546908918,0.50336496,240.54,240.45,25.63599358]
[1732546909118,4.65986496,240.59,240.48,23.776884]
[1732546909339,10.0,240.82,240.34,10.0]
[1732546909340,4.65886496,240.64,240.51,25.63599358]
[1732546909544,4.65886496,240.64,240.47,25.63599358]
[1732546909718,4.65886496,240.64,240.48,20.0]
[1732546909921,4.1552,240.67,240.53,25.63599358]
[1732546910141,4.1539,240.74,240.57,25.63599358]
[1732546910323,4.65726496,240.74,240.59,25.63599358]
[1732546910524,0.50336496,240.73,240.59,25.63599358]
[1732546910718,4.1539,240.74,240.59,25.63599358]
[1732546911023,140.3528,240.8,240.65,25.63599358]
[1732546911346,136.70336496,240.79,240.55,25.63599358]
[1732546911638,4.1533,240.77,240.61,49.41287758]
[1732546911948,4.1523,240.83,240.67,25.63599358]
[1732546912128,0.50336496,240.82,240.65,23.776884]
[1732546912652,0.50336496,240.82,240.65,25.63599358]
[1732546912947,136.2,240.81,240.56,25.63599358]
[1732546913154,136.70336496,240.8,240.6,49.41287758]
[1732546913443,136.2,240.82,240.65,20.0]
[1732546913626,0.50336496,240.81,240.64,25.63599358]
[1732546913824,0.50336496,240.93,240.66,25.63599358]
[1732546914022,0.50336496,240.93,240.62,4.1558]
[1732546914023,136.2,240.92,240.7,25.63599358]
[1732546914221,136.70336496,240.91,240.72,25.63599358]
[1732546914440,136.2,240.93,240.73,23.776884]
[1732546914645,0.50336496,240.92,240.73,23.776884]
[1732546915045,136.2,240.91,240.69,23.776884]
[1732546915239,4.1512,240.89,240.69,23.776884]
[1732546915454,0.50336496,240.9,240.79,25.63599358]
[1732546915633,4.1498,240.97,240.82,23.776884]
[1732546915937,4.1486,241.04,240.86,23.776884]
[1732546916138,0.50336496,241.03,240.86,23.776884]
[1732546916342,136.2,241.02,240.86,23.776884]
[1732546916519,0.50336496,241.01,240.86,23.776884]
[1732546917140,0.50336496,241.01,240.84,23.776884]
[1732546917347,4.1493,241.0,240.84,23.776884]
[1732546917535,0.50336496,240.99,240.84,23.776884]
[1732546918222,4.1493,241.0,240.87,20.0]
[1732546918426,4.149,241.03,240.88,49.41287758]
[1732546919125,140.3481,241.07,240.93,25.63599358]
[1732546919340,4.1469,241.14,240.96,23.776884]
[1732546919540,0.50336496,241.13,241.0,23.776884]
[1732546920535,4.64996496,241.16,241.0,23.776884]
[1732546920861,0.50336496,241.18,241.04,23.776884]
[1732546921155,136.70336496,241.17,240.83,25.63599358]
[1732546921457,10.0,241.13,240.77,29.78929358]
[1732546921659,13.0601,241.03,240.73,4.154]
[1732546921958,20.0,240.88,240.6,29.79219358]
[1732546922260,20.0,240.84,240.62,25.63599358]
[1732546922554,4.1524,240.82,240.57,4.1567]
[1732546922754,4.1524,240.82,240.49,24.86]
[1732546922755,20.0,240.8,240.5,4.158]
[1732546923070,20.0,240.76,240.47,25.63599358]
[1732546923244,20.0,240.72,240.47,25.63599358]
[1732546923561,136.70336496,240.71,240.47,25.63599358]
[1732546923755,136.2,240.76,240.49,25.63599358]
[1732546923961,0.50336496,240.75,240.51,25.63599358]
[1732546924140,0.50336496,240.75,240.59,25.63599358]
[1732546924340,20.0,240.79,240.53,25.63599358]
[1732546924534,14.5366,240.77,240.47,29.79429358]
[1732546924760,20.0,240.73,240.47,25.63599358]
[1732546924971,20.0,240.73,240.36,20.53785216]
[1732546924972,136.70336496,240.72,240.44,25.63599358]
[1732546925255,136.2,240.71,240.5,25.63599358]
[1732546925461,0.50336496,240.7,240.44,25.63599358]
[1732546925640,20.0,240.69,240.46,25.63599358]
[1732546925838,0.50336496,240.68,240.48,25.63599358]
[1732546926143,0.50336496,240.71,240.48,25.63599358]
[1732546926345,20.0,240.69,240.46,25.63599358]
[1732546926551,20.0,240.69,240.39,10.0]
[1732546926552,15.04536496,240.68,240.48,25.63599358]
[1732546926763,4.1548,240.68,240.5,25.63599358]
[1732546926939,4.1548,240.68,240.57,20.0]
[1732546927132,0.50336496,240.67,240.52,20.0]
[1732546927459,4.1548,240.68,240.52,20.0]
[1732546927758,136.70336496,240.67,240.43,25.63599358]
[1732546927941,136.2,240.66,240.39,25.63599358]
[1732546928136,136.70336496,240.65,240.35,25.63599358]
[1732546928346,20.0,240.61,240.35,25.63599358]
[1732546928544,0.50336496,240.6,240.44,25.63599358]
[1732546928739,4.65906496,240.63,240.46,25.63599358]
[1732546929046,0.50336496,240.62,240.42,25.63599358]
[1732546929252,4.1557,240.63,240.46,25.63599358]
[1732546929436,4.1557,240.63,240.49,20.0]
[1732546929637,4.65906496,240.63,240.48,25.63599358]
[1732546929846,0.50336496,240.62,240.46,25.63599358]
[1732546930036,0.50336496,240.62,240.35,10.0]
[1732546930037,0.50336496,240.62,240.38,25.63599358]
[1732546930238,136.2,240.61,240.36,25.63599358]
[1732546930544,4.1564,240.59,240.42,25.63599358]
[1732546930748,4.1564,240.59,240.3,14.565]
[1732546930749,0.50336496,240.58,240.38,25.63599358]
[1732546930949,4.1564,240.59,240.42,25.63599358]
[1732546931140,0.50336496,240.58,240.38,25.63599358]
[1732546931563,0.50336496,240.58,240.4,25.63599358]
[1732546931769,0.50336496,240.58,240.41,23.776884]
[1732546932065,136.2,240.57,240.32,25.63599358]
[1732546932271,136.70336496,240.56,240.3,25.63599358]
[1732546932459,14.5499,240.55,240.3,25.63599358]
[1732546932757,0.50336496,240.54,240.31,4.1612]
[1732546932967,0.50336496,240.54,240.34,25.63599358]
[1732546933171,20.0,240.5,240.12,10.0]
[1732546933342,136.70336496,240.49,240.26,25.63599358]
[1732546933546,136.2,240.48,240.26,25.63599358]
[1732546933844,136.70336496,240.47,240.24,25.63599358]
[1732546934049,136.2,240.47,240.26,25.63599358]
[1732546934257,4.1588,240.45,240.3,25.63599358]
[1732546934439,4.66216496,240.45,240.32,25.63599358]
[1732546934643,146.5957,240.49,240.23,4.1626]
[1732546934644,4.1579,240.51,240.4,25.63599358]
[1732546934842,20.7822,240.59,240.23,14.5692]
[1732546934843,12.8821,240.66,240.44,25.63599358]
[1732546935085,0.50336496,240.56,240.4,25.63599358]
[1732546935253,0.50336496,240.56,240.36,25.63599358]
[1732546935568,36.4687,240.57,240.45,23.776884]
[1732546935757,4.1561,240.61,240.49,23.776884]
[1732546936149,0.50336496,240.6,240.49,23.776884]
[1732546936370,10.3893,240.64,240.49,23.776884]
[1732546936371,4.65906496,240.63,240.49,23.776884]
[1732546936772,4.1557,240.63,240.5,25.63599358]
[1732546937067,12.8821,240.66,240.53,23.776884]
[1732546937274,33.69916496,240.71,240.6,20.0]
[1732546937444,33.69916496,240.71,240.56,20.0]
[1732546937445,37.3502,240.71,240.61,23.776884]
[1732546937640,0.50336496,240.7,240.5,25.63599358]
[1732546937870,136.2,240.69,240.49,20.0]
[1732546938066,136.2,240.69,240.46,25.63599358]
[1732546938067,0.50336496,240.68,240.51,23.776884]
[1732546938569,0.50336496,240.68,240.44,25.63599358]
[1732546938570,14.5426,240.67,240.49,20.0]
[1732546938912,0.50336496,240.68,240.52,25.63599358]
[1732546939040,0.50336496,240.7,240.5,25.63599358]
[1732546939244,0.50336496,240.7,240.53,20.0]
[1732546939568,37.3502,240.71,240.58,23.776884]
[1732546939776,0.50336496,240.7,240.58,23.776884]
[1732546939951,4.1541,240.73,240.62,23.776884]
[1732546940151,4.1533,240.77,240.66,49.41287758]
[1732546940347,33.0958,240.83,240.7,23.776884]
[1732546940563,4.1516,240.87,240.74,23.776884]
[1732546940777,0.50336496,240.86,240.7,23.776884]
[1732546940959,136.2,240.85,240.64,23.776884]
[1732546941270,136.70336496,240.84,240.68,23.776884]
[1732546941470,14.5306,240.87,240.59,16.584614]
[1732546941471,136.2,240.83,240.59,16.584614]
[1732546941644,136.70336496,240.82,240.61,0.12549]
[1732546941957,136.2,240.86,240.65,43.902374]
[1732546942155,0.50336496,240.85,240.7,25.63599358]
[1732546942368,4.1516,240.87,240.76,0.12549]
[1732546942571,0.50336496,240.86,240.76,0.12549]
[1732546942948,0.50336496,240.86,240.71,23.776884]
[1732546943359,136.70336496,240.86,240.66,23.776884]
[1732546943553,136.2,240.86,240.67,0.12549]
[1732546943754,0.50336496,240.85,240.67,0.12549]
[1732546944169,136.2,240.84,240.67,0.12549]
[1732546944348,0.50336496,240.83,240.67,0.12549]
[1732546944665,4.1524,240.82,240.69,0.12549]
[1732546944868,0.50336496,240.81,240.69,0.12549]
[1732546945375,4.1517,240.86,240.71,23.902374]
[1732546945554,0.50336496,240.85,240.71,23.902374]
[1732546945752,0.50336496,240.85,240.71,0.12549]
[1732546945948,0.50336496,240.85,240.73,23.902374]
[1732546946151,4.1517,240.86,240.77,23.902374]
[1732546946350,0.50336496,240.89,240.77,23.902374]
[1732546946571,4.1515,240.88,240.77,23.902374]
[1732546947064,4.1505,240.93,240.82,0.12549]
[1732546947472,0.50336496,240.92,240.82,0.12549]
[1732546947659,0.50336496,240.92,240.71,4.1542]
[1732546947854,0.50336496,240.92,240.72,23.776884]
[1732546948058,136.2,240.91,240.69,4.1546]
[1732546948367,136.2,240.91,240.7,25.76148358]
[1732546948368,0.50336496,240.9,240.7,25.76148358]
[1732546948667,14.5293,240.89,240.7,4.27989]
[1732546948874,0.50336496,240.88,240.72,0.12549]
[1732546949072,0.50336496,240.88,240.74,0.12549]
[1732546949373,146.5763,240.94,240.78,0.12549]
[1732546949577,4.1505,240.93,240.78,49.53836758]
[1732546949963,4.1505,240.93,240.82,23.902374]
[1732546950274,4.1505,240.93,240.82,0.12549]
[1732546951466,0.50336496,240.92,240.78,25.63599358]
[1732546951652,14.5269,240.93,240.8,23.776884]
[1732546951853,0.50336496,240.92,240.81,0.12549]
[1732546952052,4.1505,240.93,240.81,0.12549]
[1732546952251,4.1505,240.93,240.84,23.902374]
[1732546952581,4.1493,241.0,240.92,0.12549]
[1732546952876,4.1471,241.13,240.99,0.12549]
[1732546953055,0.50336496,241.12,240.99,0.12549]
[1732546953653,0.50336496,241.12,241.0,20.12549]
[1732546953900,4.1471,241.13,241.02,23.902374]
[1732546954061,0.50336496,241.12,241.02,0.12549]
[1732546954267,4.1471,241.13,241.02,0.12549]
[1732546954584,0.50336496,241.12,241.0,23.902374]
[1732546954879,12.584,241.24,241.05,25.63599358]
[1732546954880,4.1459,241.2,241.05,25.63599358]
[1732546955169,0.50336496,241.19,241.05,25.63599358]
[1732546955556,0.50336496,241.19,241.0,38.299484]
[1732546955557,0.50336496,241.19,241.06,0.12549]
[1732546955761,0.50336496,241.19,241.09,0.12549]
[1732546955962,4.1462,241.18,241.09,0.12549]
[1732546956171,0.50336496,241.17,241.09,0.12549]
[1732546956350,0.50336496,241.17,241.03,20.0]
[1732546956351,0.50336496,241.17,241.04,0.12549]
[1732546956755,136.2,241.16,240.88,25.63599358]
[1732546956959,14.5119,241.18,240.88,25.63599358]
[1732546956960,136.70336496,241.15,240.88,25.63599358]
[1732546957176,20.0,241.12,240.84,25.63599358]
[1732546957354,20.0,241.04,240.76,12.5318]
[1732546957556,20.0,240.99,240.79,0.02488799]
[1732546957859,14.5245,240.97,240.73,4.154]
[1732546958165,136.70336496,240.96,240.73,4.17888799]
[1732546958358,0.50336496,240.95,240.73,4.154]
[1732546958555,0.50336496,240.94,240.73,4.154]
[1732546958779,0.50336496,240.93,240.73,4.154]
[1732546958962,0.50336496,240.95,240.78,25.63599358]
[1732546959273,4.1495,241.0,240.86,25.63599358]
[1732546959586,4.1495,241.0,240.76,20.0]
[1732546959587,0.50336496,240.99,240.76,20.0]
[1732546959876,136.70336496,240.98,240.71,4.1542]
[1732546960055,140.85316496,240.97,240.71,29.79019358]
[1732546960256,0.50336496,240.96,240.71,29.79019358]
[1732546960452,20.0,240.94,240.71,29.79019358]
[1732546960673,20.0,240.92,240.71,29.79019358]
[1732546960878,14.5245,240.97,240.75,25.63599358]
[1732546961077,0.50336496,240.96,240.77,25.63599358]
[1732546961280,0.50336496,240.95,240.79,25.63599358]
[1732546961587,4.1498,240.97,240.83,25.63599358]
[1732546961778,0.50336496,241.01,240.87,25.63599358]
[1732546962084,4.1493,241.01,240.9,23.776884]
[1732546962261,0.50336496,241.09,240.97,25.63599358]
[1732546962465,31.9643,241.19,240.88,14.53]
[1732546962466,4.1474,241.12,240.88,14.53]
[1732546962787,0.50336496,241.11,240.93,25.63599358]
[1732546963081,0.50336496,241.11,240.92,23.776884]
[1732546963262,136.2,241.1,240.87,20.0]
[1732546963463,136.2,241.1,240.86,25.63599358]
[1732546963464,136.70336496,241.09,240.89,20.0]
[1732546963669,136.2,241.09,240.89,20.0]
[1732546963890,0.50336496,241.08,240.89,45.63599358]
[1732546964084,4.1481,241.07,240.91,25.63599358]
[1732546964258,0.50336496,241.06,240.9,27.927984]
[1732546964463,0.50336496,241.06,240.91,25.63599358]
[1732546964767,0.50336496,241.06,240.9,27.927984]
[1732546965169,4.1485,241.05,240.92,23.776884]
[1732546965363,4.1482,241.07,240.94,25.63599358]
[1732546965581,4.1482,241.07,240.95,23.776884]
[1732546965778,4.1477,241.1,240.96,25.63599358]
[1732546965980,4.1477,241.1,240.99,20.0]
[1732546966181,0.50336496,241.09,240.95,23.776884]
[1732546966580,4.1477,241.1,240.94,23.776884]
[1732546967293,4.1473,241.12,240.99,25.63599358]
[1732546967589,10.3665,241.17,240.99,25.63599358]
[1732546967801,0.50336496,241.16,240.95,29.78619358]
[1732546967970,0.50336496,241.16,240.9,4.1509]
[1732546968176,136.2,241.15,240.88,29.78729358]
[1732546968373,0.50336496,241.14,240.92,25.63599358]
[1732546968602,0.50336496,241.14,240.88,14.5299]
[1732546968774,4.1462,241.18,240.92,25.63599358]
[1732546968974,0.50336496,241.17,240.92,25.63599358]
[1732546969291,4.64956496,241.18,240.93,10.3764]
[1732546969497,171.94666496,241.18,240.92,43.776884]
[1732546969700,150.7119,241.18,240.94,43.776884]
[1732546969877,150.7119,241.18,240.92,43.776884]
[1732546970689,150.7119,241.18,240.94,20.0]
[1732546970880,0.50336496,241.17,240.98,20.0]
[1732546971077,20.0,241.15,240.85,25.63599358]
[1732546971298,23.776884,241.13,240.84,14.5324]
[1732546971478,20.0,241.11,240.84,14.5324]
[1732546971676,0.50336496,241.1,240.84,4.1521]
[1732546971874,136.2,241.09,240.84,4.1521]
[1732546972105,0.50336496,241.08,240.84,4.1521]
[1732546972392,0.50336496,241.08,240.84,14.5324]
[1732546972597,0.50336496,241.08,240.9,25.63599358]
[1732546972896,35.2475,241.15,240.88,25.63599358]
[1732546973079,136.70336496,241.14,240.88,25.63599358]
[1732546973279,136.2,241.14,240.91,20.0]
[1732546973588,0.50336496,241.13,240.91,23.776884]
[1732546973901,14.5155,241.12,240.92,4.1507]
[1732546974092,0.50336496,241.11,240.93,23.776884]
[1732546974294,0.50336496,241.11,240.9,23.776884]
[1732546974799,0.50336496,241.11,240.9,49.41287758]
[1732546974991,0.50336496,241.11,240.94,23.776884]
[1732546975201,4.1473,241.12,240.96,23.776884]
[1732546975581,4.1473,241.12,240.99,20.0]
[1732546975775,4.1469,241.14,241.01,4.1492]
[1732546975976,4.1469,241.14,241.02,23.776884]
[1732546976198,4.1467,241.16,241.02,23.776884]
[1732546976377,4.1463,241.18,241.06,43.776884]
[1732546976578,4.1459,241.2,241.06,43.776884]
[1732546976798,0.50336496,241.19,241.02,23.776884]
[1732546977305,10.3648,241.2,241.02,23.776884]
[1732546977889,136.2,241.24,240.96,20.0]
[1732546978081,22.6693,241.25,240.91,4.1509]
[1732546978082,146.2,241.23,240.91,4.1509]
[1732546978288,10.0,241.21,240.91,4.1509]
[1732546978500,10.0,241.15,240.86,4.1517]
[1732546978803,20.0,241.09,240.8,29.78879358]
[1732546978975,20.0,241.12,240.8,29.78879358]
[1732546978976,20.0,241.05,240.8,4.1528]
[1732546979302,20.0,241.05,240.83,25.63599358]
[1732546979481,136.2,241.11,240.85,25.63599358]
[1732546979678,136.2,241.1,240.85,25.63599358]
[1732546980004,20.0,241.06,240.85,4.1519]
[1732546980210,20.0,241.05,240.83,25.63599358]
[1732546980404,35.2564,241.09,240.87,25.63599358]
[1732546980405,14.5173,241.09,240.87,25.63599358]
[1732546980696,20.0,241.06,240.83,25.63599358]
[1732546981093,14.5173,241.09,240.85,25.63599358]
[1732546981293,20.0,241.06,240.84,23.776884]
[1732546981504,20.0,241.06,240.83,23.776884]
[1732546981702,14.5173,241.09,240.83,23.776884]
[1732546981703,136.2,241.08,240.86,23.776884]
[1732546982196,4.1481,241.07,240.88,49.41287758]
[1732546982401,4.1481,241.07,240.91,23.776884]
[1732546982896,4.1473,241.12,240.89,23.776884]
[1732546983304,136.2,241.11,240.83,4.1523]
[1732546983506,136.2,241.1,240.86,25.63599358]
[1732546983707,150.7155,241.12,240.92,25.63599358]
[1732546983932,150.7155,241.12,240.94,25.63599358]
[1732546983933,4.1473,241.12,240.94,25.63599358]
[1732546984092,4.1473,241.12,240.95,4.1502]
[1732546984283,14.5155,241.12,240.95,4.1502]
[1732546984484,14.5155,241.12,240.88,29.78739358]
[1732546984708,14.5155,241.12,240.89,23.776884]
[1732546984886,14.5155,241.12,240.93,20.0]
[1732546985083,14.5155,241.12,240.88,14.53]
[1732546985084,4.1473,241.12,240.94,25.63599358]
[1732546985293,4.1473,241.12,240.93,20.0]
[1732546985604,4.1473,241.12,240.96,25.63599358]
[1732546985780,30.0031,241.13,240.99,20.0]
[1732546985980,30.0031,241.13,240.81,90.763]
[1732546985981,34.1503,241.13,240.83,10.3807]
[1732546986201,34.1503,241.13,240.95,23.776884]
[1732546986385,44.5181,241.13,240.97,23.776884]
[1732546986581,34.1503,241.13,240.99,23.776884]
[1732546986782,12.6693,241.25,241.06,25.63599358]
[1732546987007,12.6693,241.25,241.1,25.63599358]
[1732546987183,12.6693,241.25,241.13,23.776884]
[1732546987378,4.1433,241.35,241.19,25.63599358]
[1732546987578,4.1433,241.35,241.22,20.0]
[1732546987808,4.1433,241.35,241.15,23.776884]
[1732546987981,14.5017,241.35,241.11,23.776884]
[1732546988188,10.0,241.27,240.98,25.63599358]
[1732546988380,136.2,241.26,240.96,25.63599358]
[1732546988597,136.2,241.26,240.98,25.63599358]
[1732546988794,20.0,241.23,240.99,25.63599358]
[1732546988994,20.0,241.23,240.89,22.9337]
[1732546988995,20.0,241.19,240.89,12.9337]
[1732546989316,136.2,241.18,240.99,25.63599358]
[1732546989501,20.0,241.23,241.02,25.63599358]
[1732546989804,20.0,241.23,240.89,12.9337]
[1732546989805,136.2,241.27,241.06,25.63599358]
[1732546989983,136.2,241.33,241.12,25.63599358]
[1732546990182,14.5034,241.32,241.13,25.63599358]
[1732546990391,14.5034,241.32,241.12,20.0]
[1732546990615,14.5034,241.32,241.14,23.776884]
[1732546990817,4.1438,241.32,241.2,25.63599358]
[1732546990987,29.270052,241.36,241.24,25.63599358]
[1732546991191,4.1432,241.36,241.23,23.776884]
[1732546991420,31.4254,241.37,241.24,25.63599358]
[1732546991591,14.4981,241.41,241.2,25.63599358]
[1732546991893,14.4981,241.41,241.25,25.63599358]
[1732546992084,4.1418,241.44,241.27,20.0]
[1732546992289,4.1418,241.44,241.27,45.63599358]
[1732546992506,14.4963,241.44,241.27,20.0]
[1732546992812,14.4963,241.44,241.11,82.1567]
[1732546992813,136.2,241.43,241.11,12.1567]
[1732546993106,136.2,241.42,241.2,23.776884]
[1732546993415,136.2,241.41,241.15,20.0]
[1732546993615,136.2,241.4,241.16,25.63599358]
[1732546993810,159.976884,241.39,241.12,25.63599358]
[1732546994107,14.5005,241.37,241.12,25.63599358]
[1732546994317,136.2,241.36,241.14,25.63599358]
[1732546994501,14.5005,241.37,241.16,25.63599358]
[1732546994816,20.0,241.33,241.05,25.63599358]
[1732546994992,20.0,241.28,241.07,25.63599358]
[1732546995195,136.2,241.3,241.14,25.63599358]
[1732546995494,30.2498,241.31,241.14,25.63599358]
[1732546995692,30.2498,241.31,241.12,25.63599358]
[1732546996092,4.1442,241.3,241.15,20.0]
[1732546996292,4.1442,241.3,241.09,20.0]
[1732546996503,140.3442,241.3,241.11,20.0]
[1732546996690,4.1442,241.3,241.13,20.0]
[1732546997096,4.1442,241.3,241.15,20.0]
[1732546997614,30.2498,241.31,241.16,23.776884]
[1732546997906,32.3236,241.42,241.23,20.0]
[1732546998112,36.13845572,241.41,241.14,42.18635358]
[1732546998313,0.92875572,241.4,241.2,25.63599358]
[1732546998612,0.92875572,241.4,241.18,23.776884]
[1732546998997,0.92875572,241.4,241.21,20.0]
[1732546999196,0.92875572,241.4,241.25,20.0]
[1732546999412,0.92875572,241.4,241.26,23.776884]
[1732546999612,0.92875572,241.4,241.25,20.0]
[1732546999792,0.92875572,241.4,241.26,23.776884]
[1732546999989,0.92875572,241.4,241.18,20.0]
[1732547000205,4.1426,241.39,241.23,23.776884]
[1732547000410,136.2,241.47,241.23,23.776884]